bitfinex/quotes_ETHUSD_20220103
["timestamp","ask_amount","ask_price","bid_price","bid_amount"]
[1641229942756,0.384,3755.4,3755.0,3.4809575]
[1641229943359,0.384,3755.4,3754.5,9.6307]
[1641229943558,0.384,3755.4,3755.1,0.00284211]
[1641229943559,1.3320218,3755.3,3755.1,0.00284211]
[1641229943760,0.384,3755.2,3755.1,0.00284211]
[1641229944163,1.384,3755.2,3755.1,0.00284211]
[1641229944860,2.05109887,3755.2,3754.8,0.00454738]
[1641229945061,0.3,3755.0,3754.8,0.00454738]
[1641229945263,0.384,3754.9,3754.8,0.00454738]
[1641229945812,1.04064264,3754.9,3754.8,0.00454738]
[1641229946008,1.04064264,3754.9,3754.8,6.12454738]
[1641229946210,1.04064264,3754.9,3754.8,6.22990638]
[1641229946612,1.70675264,3754.9,3754.8,6.22990638]
[1641229948822,1.05011,3754.9,3754.8,6.22990638]
[1641229949566,1.35011,3754.9,3754.8,6.22990638]
[1641229949769,1.05011,3754.9,3754.8,6.22990638]
[1641229949970,1.05011,3754.9,3754.8,0.10990638]
[1641229950169,1.35011,3754.9,3754.8,0.10990638]
[1641229950367,1.36056706,3754.9,3754.8,0.10990638]
[1641229950568,1.36213196,3754.9,3754.8,0.10990638]
[1641229950767,2.45816109,3754.9,3754.8,0.10990638]
[1641229950968,3.45816109,3754.9,3754.8,0.10990638]
[1641229951369,1.36213196,3754.9,3754.8,0.10990638]
[1641229952471,1.06213196,3754.9,3754.8,0.10990638]
[1641229952669,0.01202196,3754.9,3754.8,0.10990638]
[1641229952869,0.01202196,3754.9,3754.8,2.19701615]
[1641229953068,0.01202196,3754.9,3754.8,0.10990638]
[1641229956208,0.01202196,3754.9,3754.8,0.00454738]
[1641229956610,0.01202196,3754.9,3754.6,0.00568423]
[1641229960066,0.91806482,3754.8,3754.7,2.08356518]
[1641229961314,0.9196179,3754.8,3754.7,2.08356518]
[1641229961514,0.9196179,3754.8,3754.6,2.08356518]
[1641229961715,1.58561,3754.8,3754.6,2.08356518]
[1641229963222,0.91806482,3754.7,3754.6,2.18892418]
[1641229963615,0.91806482,3754.7,3754.6,2.19460841]
[1641229971721,0.85148161,3754.7,3754.6,2.19460841]
[1641229975918,0.86193908,3754.7,3754.6,2.19460841]
[1641229977320,0.01045747,3754.7,3754.6,0.11104323]
[1641229977523,0.31045747,3754.7,3754.6,0.11104323]
[1641229980167,0.69445747,3754.7,3754.3,0.04874145]
[1641229980370,0.69445747,3754.7,3754.2,0.06269923]
[1641229980371,0.66619,3754.4,3754.2,0.06269923]
[1641229980569,0.384,3754.3,3754.2,0.06269923]
[1641229980774,0.684,3754.3,3754.2,0.06269923]
[1641229980968,0.684,3754.3,3754.2,0.06497292]
[1641229981169,0.684,3754.3,3753.9,1.77094394]
[1641229981370,0.66632,3754.1,3753.9,1.77094394]
[1641229981568,0.66632,3754.1,3754.0,0.00113685]
[1641229981569,1.96632,3754.1,3754.0,0.00113685]
[1641229981968,7.45532,3754.1,3754.0,0.00113685]
[1641229982369,0.66635,3753.8,3753.4,0.00454739]
[1641229982569,0.66635,3753.8,3753.2,0.06270022]
[1641229982570,0.6663495,3753.6,3753.3,0.00511582]
[1641229982770,0.384,3753.5,3753.3,0.00511582]
[1641229983619,0.384,3753.5,3753.1,0.00625266]
[1641229983820,0.6663549,3753.4,3753.1,0.00625266]
[1641229984022,0.384,3753.3,3752.9,0.00738951]
[1641229984823,0.384,3753.3,3752.8,0.45]
[1641229985025,0.384,3753.3,3752.2,3.7888918]
[1641229985026,3.0,3752.3,3752.2,3.7888918]
[1641229985227,6.1138,3752.3,3752.2,3.7888918]
[1641229985429,2.7,3752.2,3751.9,3.60727823]
[1641229985625,6.189,3752.1,3751.9,3.60727823]
[1641229986025,8.30734616,3752.1,3751.0,1.30512744]
[1641229986824,9.04264616,3752.1,3751.0,1.30512744]
[1641229987072,9.06467795,3752.1,3751.0,1.30512744]
[1641229987660,9.06467795,3752.1,3750.9,3.9448]
[1641229988363,9.06467795,3752.1,3751.3,0.06281686]
[1641229988961,9.06467795,3752.1,3751.3,1.17722925]
[1641229989166,9.06467795,3752.1,3751.3,0.06281686]
[1641229990163,9.06467795,3752.1,3751.9,0.105359]
[1641229990365,9.07701942,3752.1,3751.9,0.105359]
[1641229990563,2.3196464,3752.0,3751.9,0.105359]
[1641229990807,2.7036464,3752.0,3751.9,0.105359]
[1641229991107,3.7036464,3752.0,3751.9,0.11104323]
[1641229991709,1.384,3752.0,3751.9,0.11104323]
[1641229992508,1.40604022,3752.0,3751.9,0.11104323]
[1641229992709,3.62945325,3752.0,3751.9,0.11104323]
[1641229992908,1.40604022,3752.0,3751.9,0.11104323]
[1641229993109,3.61174576,3752.0,3751.9,0.11104323]
[1641229993509,7.98799395,3752.0,3751.9,0.11104323]
[1641229993809,7.98502882,3752.0,3751.9,0.22972863]
[1641229994311,7.99811459,3752.0,3751.9,0.22972863]
[1641229994573,7.88735756,3752.0,3751.9,0.22972863]
[1641229995174,10.08125462,3752.0,3751.9,0.22972863]
[1641229997578,10.77728777,3752.0,3751.9,0.22972863]
[1641229998919,8.58339071,3752.0,3751.9,0.22972863]
[1641229999525,10.79468311,3752.0,3751.9,0.22972863]
[1641229999722,10.79060747,3752.0,3751.9,0.22972863]
[1641230000124,10.79060747,3752.0,3751.9,0.12436963]
[1641230000323,11.09060747,3752.0,3751.3,0.06281686]
[1641230000521,0.96672,3751.7,3751.3,0.06281686]
[1641230000725,0.384,3751.6,3751.4,0.00284212]
[1641230001024,6.49304624,3751.5,3751.4,0.00284212]
[1641230001223,6.49304624,3751.5,3750.1,6.8027]
[1641230001224,3.45,3751.4,3750.4,1.80521506]
[1641230001424,3.45,3751.4,3750.4,1.75521506]
[1641230001425,0.66682,3750.9,3750.4,1.75521506]
[1641230001638,0.384,3750.8,3750.5,0.00511581]
[1641230001825,1.36564362,3750.7,3750.5,0.00511581]
[1641230002072,1.36564362,3750.7,3750.4,0.16817671]
[1641230002073,12.32530752,3750.6,3750.4,0.16817671]
[1641230002275,7.14835304,3750.5,3750.4,0.16817671]
[1641230002472,8.83235304,3750.5,3750.4,0.16817671]
[1641230002678,0.66703,3749.9,3749.4,3.60727823]
[1641230002873,0.384,3749.8,3749.4,3.60727823]
[1641230003075,0.384,3749.8,3749.5,0.00568424]
[1641230003877,1.3340073,3749.7,3748.9,0.0561]
[1641230004077,0.66703,3749.2,3748.8,7.6612]
[1641230004277,0.66703,3749.2,3748.7,4.84227823]
[1641230004481,0.66703,3749.2,3748.9,0.00341054]
[1641230004685,0.66703,3749.2,3748.7,3.55768877]
[1641230004883,0.00113685,3749.1,3748.8,1.39281315]
[1641230005282,1.05217685,3749.1,3748.8,1.39281315]
[1641230005683,1.05217685,3749.1,3748.8,0.105359]
[1641230006619,1.22107685,3749.1,3748.8,0.105359]
[1641230007719,1.05217685,3749.1,3748.8,0.105359]
[1641230008521,1.23257685,3749.1,3748.8,0.105359]
[1641230009771,1.05217685,3749.1,3748.8,0.105359]
[1641230015032,0.66708,3748.9,3748.8,0.105359]
[1641230015228,1.05108,3748.9,3748.8,0.105359]
[1641230015830,1.05108,3748.9,3748.7,0.105359]
[1641230018273,0.02230807,3748.8,3748.7,0.105359]
[1641230018473,0.40630807,3748.8,3748.7,0.105359]
[1641230018672,0.40630807,3748.8,3748.7,0.10649585]
[1641230021435,0.02230807,3748.8,3748.7,0.10649585]
[1641230021829,0.00234699,3749.0,3748.8,3.9]
[1641230022028,0.00234699,3749.0,3748.7,0.10649585]
[1641230022630,0.00234699,3749.0,3748.7,1.13883657]
[1641230022834,1.97758968,3748.8,3748.7,1.13883657]
[1641230023030,1.97758968,3748.8,3748.7,2.03347757]
[1641230024034,1.9887479,3748.8,3748.7,2.03347757]
[1641230024235,0.01115822,3748.8,3748.7,2.03347757]
[1641230025091,1.9887479,3748.8,3748.7,3.8395349]
[1641230025687,1.99107123,3748.8,3748.7,3.8395349]
[1641230030144,1.99107123,3748.8,3748.7,2.8395349]
[1641230031147,0.01348155,3748.8,3748.7,2.8395349]
[1641230031650,1.97947053,3748.8,3748.7,3.1395349]
[1641230031847,1.97947053,3748.8,3748.7,2.8395349]
[1641230032086,1.97947053,3748.8,3748.7,1.03347757]
[1641230034083,1.97947053,3748.8,3748.7,1.33347757]
[1641230036933,2.36347053,3748.8,3748.7,1.33347757]
[1641230037733,2.36347053,3748.8,3748.7,1.03347757]
[1641230037933,2.36347053,3748.8,3748.7,0.98347757]
[1641230039336,2.36347053,3748.8,3748.6,0.210717]
[1641230039337,4.1,3748.7,3748.6,0.210717]
[1641230039585,1.0512887,3748.7,3748.6,0.210717]
[1641230039788,2.08355246,3748.7,3748.6,0.210717]
[1641230039989,1.33458,3748.4,3747.9,1.80605733]
[1641230040192,0.384,3748.3,3747.9,1.75605733]
[1641230040389,0.384,3748.3,3748.0,0.00397896]
[1641230040590,0.6672981,3748.2,3747.9,1.75605733]
[1641230040790,0.384,3748.1,3747.9,1.86141633]
[1641230040990,0.684,3748.1,3747.9,0.105359]
[1641230041791,0.66731,3748.0,3747.8,0.105358]
[1641230041991,0.384,3747.9,3747.8,0.105358]
[1641230042192,0.684,3747.9,3747.8,0.105358]
[1641230042393,0.684,3747.9,3747.8,0.10649485]
[1641230042693,0.684,3747.9,3747.8,0.05649485]
[1641230043092,0.684,3747.9,3747.8,0.16185385]
[1641230044831,0.684,3747.9,3747.8,0.10885385]
[1641230045031,0.684,3747.9,3747.8,0.05885385]
[1641230048491,0.68621657,3747.9,3747.7,0.105359]
[1641230048899,1.35359657,3747.9,3747.7,0.105359]
[1641230049098,2.35359657,3747.9,3747.7,0.105359]
[1641230049801,0.01647719,3747.8,3747.7,0.105359]
[1641230050000,0.40047719,3747.8,3747.7,0.105359]
[1641230058649,0.40047719,3747.8,3747.7,0.055359]
[1641230059353,0.40268189,3747.8,3747.7,0.055359]
[1641230059951,2.47842638,3747.8,3747.7,0.96707028]
[1641230060152,3.47842638,3747.8,3747.7,0.96707028]
[1641230060350,2.47842638,3747.8,3747.7,0.96707028]
[1641230060954,2.47842638,3747.8,3747.7,1.26707028]
[1641230061555,2.09442638,3747.8,3747.7,1.26707028]
[1641230061755,2.7009534,3748.2,3747.7,1.27923611]
[1641230061957,2.7009534,3748.2,3747.7,1.57923611]
[1641230062187,0.00170527,3748.1,3747.7,1.57923611]
[1641230062588,0.00113685,3748.0,3747.9,0.66704]
[1641230065302,0.00113685,3748.0,3747.9,0.96704]
[1641230065498,0.00113685,3748.0,3747.9,1.26704]
[1641230068039,0.00113685,3748.0,3747.9,0.66704]
[1641230069804,0.00312032,3748.0,3747.9,0.66704]
[1641230070606,0.00312032,3748.0,3747.9,0.96704]
[1641230071005,0.00312032,3748.0,3747.9,0.66704]
[1641230075662,0.01359658,3748.0,3747.9,0.66704]
[1641230082341,1.62216493,3748.0,3747.9,2.0641905]
[1641230091756,1.55546269,3748.0,3747.9,2.0641905]
[1641230093200,0.66712,3748.4,3747.9,2.0641905]
[1641230093600,0.00170527,3748.3,3747.9,0.66704]
[1641230093999,0.00113685,3748.2,3747.9,0.66704]
[1641230096542,0.00113685,3748.2,3748.1,1.36191749]
[1641230096742,0.00113685,3748.2,3748.1,1.66191749]
[1641230100395,0.00113685,3748.2,3748.1,0.3]
[1641230100595,0.00113685,3748.2,3748.0,1.6341769]
[1641230101500,0.00269503,3748.2,3748.0,0.96709]
[1641230102301,0.00269503,3748.2,3748.0,0.66709]
[1641230102698,0.00269503,3748.2,3747.9,0.66704]
[1641230103945,0.66985503,3748.2,3747.9,0.66704]
[1641230109402,0.66985503,3748.2,3748.0,0.01138188]
[1641230109604,0.66985503,3748.2,3748.0,0.68992376]
[1641230110605,0.68033085,3748.2,3748.0,0.68992376]
[1641230112040,0.68033085,3748.2,3748.0,1.35707176]
[1641230112442,0.68033085,3748.2,3748.1,1.39896431]
[1641230113043,0.01317085,3748.2,3748.1,1.69896431]
[1641230114790,0.01317085,3748.2,3748.1,1.72172807]
[1641230117792,0.01317085,3748.2,3748.1,1.42172807]
[1641230121262,0.39717085,3748.2,3748.1,1.42172807]
[1641230121458,1.25987085,3748.2,3748.1,1.42172807]
[1641230121663,2.25987085,3748.2,3748.1,1.42172807]
[1641230121861,2.25987085,3748.2,3748.1,0.02276376]
[1641230122303,4.9596874,3748.2,3748.1,0.02276376]
[1641230123306,3.7454874,3748.2,3748.1,0.02276376]
[1641230123605,1.04567085,3748.2,3748.1,0.02276376]
[1641230123807,0.18297085,3748.2,3748.1,0.02276376]
[1641230124510,0.18297085,3748.2,3748.1,1.42194501]
[1641230124907,0.18297085,3748.2,3748.1,1.72194501]
[1641230125109,0.18297085,3748.2,3748.1,1.42194501]
[1641230125948,0.18297085,3748.2,3748.1,0.02276376]
[1641230126147,2.89284629,3748.2,3748.1,0.02276376]
[1641230126552,3.89284629,3748.2,3748.1,0.02276376]
[1641230126950,1.18297085,3748.2,3748.1,0.02276376]
[1641230127949,0.18297085,3748.2,3748.1,0.02276376]
[1641230128149,1.18297085,3748.2,3748.1,0.02276376]
[1641230128759,2.78587771,3748.2,3748.1,0.02276376]
[1641230128953,1.78587771,3748.2,3748.1,0.02276376]
[1641230129153,2.786943,3748.2,3748.1,0.02276376]
[1641230129355,1.786943,3748.2,3748.1,0.02276376]
[1641230129609,2.786943,3748.2,3748.1,0.02276376]
[1641230132901,3.086943,3748.2,3748.1,0.02276376]
[1641230135046,2.786943,3748.2,3748.1,0.02276376]
[1641230135445,3.086943,3748.2,3748.1,0.02276376]
[1641230135849,2.786943,3748.2,3748.1,0.02276376]
[1641230136049,1.786943,3748.2,3748.1,0.02276376]
[1641230136250,2.786943,3748.2,3748.1,0.02276376]
[1641230136648,1.786943,3748.2,3748.1,0.02276376]
[1641230139896,1.786943,3748.2,3748.1,0.03551414]
[1641230140303,1.786943,3748.2,3748.1,1.31880627]
[1641230141638,1.60397215,3748.2,3748.1,1.31880627]
[1641230142037,1.60397215,3748.2,3748.1,1.61880627]
[1641230142440,0.00106529,3748.2,3748.1,1.61880627]
[1641230143039,7.499,3749.1,3748.1,1.91880627]
[1641230143239,7.499,3749.1,3748.6,0.66699]
[1641230143439,7.499,3749.1,3748.7,0.6669837]
[1641230143639,7.499,3749.1,3748.9,0.01138188]
[1641230143839,7.499,3749.1,3748.9,0.02276376]
[1641230144242,1.70859296,3749.0,3748.9,0.02276376]
[1641230145499,1.70859296,3749.0,3748.8,0.66698]
[1641230145700,0.3963627,3748.9,3748.8,0.66698]
[1641230145896,0.40034166,3748.9,3748.1,0.01275038]
[1641230146097,26.71685668,3748.3,3748.1,0.01275038]
[1641230146796,26.71685668,3748.3,3748.1,1.34716038]
[1641230146998,4.08125262,3748.2,3748.1,0.01275038]
[1641230150552,4.08208163,3748.2,3748.1,0.01275038]
[1641230150750,4.08208163,3748.2,3747.5,3.799059]
[1641230150751,0.66724,3747.9,3747.5,3.799059]
[1641230150948,0.66724,3747.9,3747.2,7.46406706]
[1641230151148,0.61724,3747.9,3747.2,2.20866885]
[1641230151347,0.00113684,3747.8,3747.3,0.00170527]
[1641230151947,0.00113684,3747.8,3747.5,1.00185192]
[1641230152197,1.7097298,3747.8,3747.5,1.00185192]
[1641230152795,0.00113684,3747.8,3747.5,1.00185192]
[1641230153597,1.7097298,3747.8,3747.5,1.00185192]
[1641230153897,1.7097298,3747.8,3747.6,0.6671637]
[1641230154499,1.70859296,3747.7,3747.6,0.6671637]
[1641230156344,1.70859296,3747.7,3747.5,1.00185192]
[1641230157547,1.70859296,3747.6,3747.5,1.00185192]
[1641230161006,1.70859296,3747.6,3747.5,1.01519397]
[1641230161203,1.70859296,3747.6,3747.5,1.0114053]
[1641230161605,1.70859296,3747.6,3747.5,2.442777]
[1641230164747,1.70859296,3747.6,3747.5,18.082777]
[1641230166951,1.70859296,3747.6,3747.5,2.442777]
[1641230167196,1.60859296,3747.6,3747.5,2.442777]
[1641230170103,1.60859296,3747.6,3747.5,3.442777]
[1641230170302,1.60859296,3747.6,3747.5,3.742777]
[1641230171843,0.00113684,3747.8,3747.5,3.742777]
[1641230172040,0.00113684,3747.8,3747.6,0.66702]
[1641230172240,0.00113684,3747.8,3747.6,1.33404]
[1641230172441,0.00113684,3747.8,3747.7,15.64]
[1641230172645,0.00113684,3747.8,3747.7,16.94]
[1641230173043,0.00113684,3747.8,3747.7,1.3]
[1641230173445,0.00113684,3747.8,3747.7,5.90694656]
[1641230173643,0.00113684,3747.8,3747.7,2.80694656]
[1641230174444,0.00113684,3747.8,3747.7,18.44694656]
[1641230174713,0.20233284,3747.7,3747.6,2.0010542]
[1641230174918,0.59895707,3747.7,3747.3,0.00170527]
[1641230175116,0.01200807,3747.4,3747.3,0.00170527]
[1641230175414,0.39600807,3747.4,3747.2,0.0022737]
[1641230175814,0.66745,3747.3,3747.2,1.38796163]
[1641230176014,1.05145,3747.3,3747.2,0.0022737]
[1641230177618,1.06192817,3747.3,3747.2,0.0022737]
[1641230180257,0.01047817,3747.3,3747.2,0.0022737]
[1641230182908,0.01047817,3747.3,3747.2,0.0144162]
[1641230185958,0.01047817,3747.3,3747.2,3.5144162]
[1641230186160,0.01047817,3747.3,3747.2,5.6562224]
[1641230186354,0.01047817,3747.3,3747.2,6.6562224]
[1641230186753,0.01047817,3747.3,3747.2,5.6562224]
[1641230186955,0.01047817,3747.3,3747.2,6.6562224]
[1641230187654,2.02423431,3747.3,3747.2,4.14648285]
[1641230187856,2.02423431,3747.3,3747.2,2.00467665]
[1641230188054,2.02423431,3747.3,3747.2,4.07967435]
[1641230188257,0.01047817,3747.3,3747.2,2.00467665]
[1641230188456,0.01047817,3747.3,3747.2,4.11725927]
[1641230188855,2.02423431,3747.3,3747.2,4.08677844]
[1641230189059,2.02423431,3747.3,3747.2,2.00467665]
[1641230189257,2.02423431,3747.3,3747.2,4.07600325]
[1641230189899,2.02423431,3747.3,3747.2,2.00467665]
[1641230190100,0.01047817,3747.3,3747.2,2.00467665]
[1641230192103,2.03876567,3747.3,3747.2,2.00467665]
[1641230192906,0.01047817,3747.3,3747.2,2.00467665]
[1641230193340,0.01047817,3747.3,3747.2,17.64467665]
[1641230193545,0.01047817,3747.3,3747.2,2.00467665]
[1641230193743,0.01047817,3747.3,3747.2,2.30467665]
[1641230193944,0.01047817,3747.3,3747.2,2.60467665]
[1641230194650,0.01047817,3747.3,3747.2,4.21187665]
[1641230194853,0.01047817,3747.3,3747.2,19.85187665]
[1641230199407,0.26544721,3747.7,3747.3,8.3]
[1641230199608,0.26544721,3747.7,3747.5,0.66702]
[1641230199807,0.26544721,3747.7,3747.6,1.23094892]
[1641230200207,0.26544721,3747.7,3747.6,2.23094892]
[1641230200408,0.26544721,3747.7,3747.6,17.87094892]
[1641230200951,0.26544721,3747.7,3747.6,3.22120937]
[1641230201354,0.20233284,3747.7,3747.6,18.86120937]
[1641230201553,0.20233284,3747.7,3747.6,17.87094892]
[1641230202559,2.18018791,3747.7,3747.6,18.9017648]
[1641230203760,2.18018791,3747.7,3747.6,3.2617648]
[1641230204901,0.06311379,3748.1,3747.7,4.65]
[1641230205101,0.06311379,3748.1,3747.9,0.66699]
[1641230205297,0.00227369,3748.0,3747.9,1.6339797]
[1641230205496,0.00227369,3748.0,3747.9,1.26699]
[1641230206700,0.00227369,3748.0,3747.9,0.6]
[1641230209048,0.00227369,3748.0,3747.9,1.267]
[1641230209850,0.00227369,3748.0,3747.9,18.99064405]
[1641230210051,0.00227369,3748.0,3747.9,19.99064405]
[1641230210450,0.00227369,3748.0,3747.9,4.35064405]
[1641230211051,0.00227369,3748.0,3747.9,2.267]
[1641230211851,0.06311335,3748.4,3747.9,2.267]
[1641230212102,0.06311335,3748.4,3748.2,0.667]
[1641230212309,0.00170527,3748.3,3748.2,0.967]
[1641230212502,0.00170527,3748.3,3748.2,1.267]
[1641230212701,0.00170527,3748.3,3748.2,2.267]
[1641230213508,0.00170527,3748.3,3748.2,0.967]
[1641230213910,0.00170527,3748.3,3748.2,0.667]
[1641230215009,0.00170527,3748.3,3748.2,0.967]
[1641230216050,0.00170527,3748.3,3748.2,1.267]
[1641230216450,0.00170527,3748.3,3748.2,0.967]
[1641230216648,0.00170527,3748.3,3748.2,0.96964504]
[1641230216849,0.00170527,3748.3,3748.2,0.97229008]
[1641230220620,0.00170527,3748.3,3748.2,1.27229008]
[1641230221015,0.00170527,3748.3,3748.2,2.27229008]
[1641230221714,0.00170527,3748.3,3748.2,1.97229008]
[1641230223555,5.27e-06,3748.3,3748.2,11.74736751]
[1641230224156,0.06311292,3748.7,3748.2,27.38736751]
[1641230224355,0.06311292,3748.7,3748.3,0.3]
[1641230224558,0.00170527,3748.6,3748.5,16.9736]
[1641230224757,7.499,3749.1,3748.6,4.0]
[1641230224957,7.499,3749.1,3748.7,15.64]
[1641230225156,0.0022737,3749.0,3748.9,1.03593154]
[1641230225557,0.0022737,3749.0,3748.9,1.63593154]
[1641230226959,0.0022737,3749.0,3748.9,2.74611646]
[1641230227220,0.0022737,3749.0,3748.9,3.74611646]
[1641230227815,0.0022737,3749.0,3748.9,3.75124974]
[1641230228616,1.88969592,3749.0,3748.9,3.75124974]
[1641230228816,1.88969592,3749.0,3748.9,5.85392292]
[1641230229421,1.88969592,3749.0,3748.9,5.81982777]
[1641230229625,1.88969592,3749.0,3748.9,3.75124974]
[1641230230952,1.88969592,3749.0,3748.9,3.85660774]
[1641230233860,1.88969592,3749.0,3748.9,19.49660774]
[1641230234601,0.0022737,3749.0,3748.9,19.49660774]
[1641230237808,0.0022737,3749.0,3748.9,19.60196574]
[1641230238656,0.0022737,3749.0,3748.9,19.60453238]
[1641230238952,7.48330354,3749.1,3749.0,0.00256664]
[1641230239152,7.48330354,3749.1,3749.0,17.30939664]
[1641230240159,7.48330354,3749.1,3749.0,18.41958156]
[1641230242202,7.48330354,3749.1,3749.0,2.77958156]
[1641230242404,7.48330354,3749.1,3749.0,2.11275156]
[1641230242702,7.48330354,3749.1,3749.0,1.11275156]
[1641230243503,7.48330354,3749.1,3749.0,0.00256664]
[1641230243903,9.23714348,3749.1,3749.0,0.00256664]
[1641230244308,9.24761659,3749.1,3749.0,0.00256664]
[1641230245709,10.49761659,3749.1,3749.0,0.00256664]
[1641230247546,9.24761659,3749.1,3749.0,0.00256664]
[1641230259709,9.24761659,3749.1,3749.0,1.23634928]
[1641230262961,9.24761659,3749.1,3749.0,1.53634928]
[1641230263164,9.24761659,3749.1,3749.0,1.83634928]
[1641230263562,9.24761659,3749.1,3749.0,2.83634928]
[1641230263760,9.24761659,3749.1,3749.0,18.47634928]
[1641230263966,3.91374659,3749.1,3749.0,18.47634928]
[1641230264165,1.76431305,3749.1,3749.0,18.47634928]
[1641230264366,0.06299353,3749.4,3749.1,6.6]
[1641230264616,0.06299353,3749.4,3749.2,18.64014]
[1641230264817,0.00170527,3749.3,3749.2,18.94014]
[1641230265015,0.00170527,3749.3,3749.2,19.24014]
[1641230265615,2.70987544,3750.4,3749.3,0.27639994]
[1641230265818,2.70987544,3750.4,3750.0,0.66666]
[1641230266017,0.00568423,3750.3,3750.0,0.66666]
[1641230266415,0.00511581,3750.2,3750.0,0.66666]
[1641230266816,0.00454738,3750.1,3750.0,0.66666]
[1641230267018,0.00454738,3750.1,3750.0,1.2089142]
[1641230267319,0.00795792,3750.1,3750.0,1.2089142]
[1641230267517,0.00795792,3750.1,3750.0,1.8755872]
[1641230268349,0.00795792,3750.1,3750.0,3.2089372]
[1641230268751,0.00795792,3750.1,3750.0,1.8755872]
[1641230268952,0.00795792,3750.1,3750.0,2.8755872]
[1641230269351,5.792e-05,3750.1,3750.0,3.1755872]
[1641230269553,2.70987544,3750.9,3750.4,0.66651]
[1641230269754,2.70987544,3750.9,3750.5,1.05051]
[1641230269956,2.70987544,3750.9,3750.5,1.05164684]
[1641230270154,2.70987544,3750.9,3750.6,0.3]
[1641230270354,2.70987544,3750.9,3750.6,0.684]
[1641230270554,2.70987544,3750.9,3750.6,1.98635931]
[1641230270754,2.70987544,3751.4,3750.7,1.33540931]
[1641230270956,2.70987544,3751.4,3751.0,0.66652]
[1641230271157,0.0022737,3751.1,3751.0,0.66652]
[1641230271359,0.0022737,3751.1,3750.9,1.63304]
[1641230271756,0.00170527,3751.0,3750.9,1.63304]
[1641230272203,0.00170527,3751.0,3750.9,2.9661]
[1641230273803,0.00170527,3751.0,3750.9,3.2661]
[1641230274004,0.00170527,3751.0,3750.9,4.2661]
[1641230276850,0.00170527,3751.0,3750.9,4.371459]
[1641230280308,0.00170527,3751.0,3750.9,1.705359]
[1641230280709,0.00170527,3751.0,3750.9,0.705359]
[1641230280909,0.00170527,3751.0,3750.9,0.105359]
[1641230281210,0.00170527,3751.0,3750.9,1.405359]
[1641230282212,0.00170527,3751.0,3750.9,0.10769449]
[1641230282612,0.00170527,3751.0,3750.9,0.11236547]
[1641230282813,0.00170527,3751.0,3750.9,0.11470096]
[1641230283375,0.00170527,3751.0,3750.9,0.41470096]
[1641230283576,0.00170527,3751.0,3750.9,1.41470096]
[1641230283975,2.4804,3752.2,3750.9,1.41470096]
[1641230284176,2.4804,3752.2,3751.5,0.6664]
[1641230284378,0.00625266,3752.1,3751.8,0.66637]
[1641230284576,0.00625266,3752.1,3751.7,0.6663706]
[1641230284577,0.00625266,3752.1,3752.0,1.10187248]
[1641230284779,1.32105793,3752.6,3752.0,1.10187248]
[1641230285181,0.00852636,3752.5,3752.0,1.10187248]
[1641230285380,0.00852636,3752.5,3752.2,0.66637]
[1641230285584,0.00795793,3752.4,3752.2,1.33274]
[1641230285982,0.00738951,3752.3,3752.2,1.33274]
[1641230290609,0.05905401,3752.6,3752.2,1.33274]
[1641230290855,0.05905401,3752.6,3752.3,1.33262]
[1641230291055,0.00113685,3752.5,3752.4,0.96631]
[1641230293759,0.384,3753.0,3752.5,0.00363321]
[1641230293958,0.384,3753.0,3752.6,2.6651423]
[1641230294158,0.00227369,3752.9,3752.6,2.9651423]
[1641230294360,0.00227369,3752.9,3752.7,0.66629]
[1641230294599,0.00170527,3752.8,3752.7,0.66629]
[1641230295604,0.384,3753.0,3752.7,0.66629]
[1641230296204,0.06311485,3753.2,3752.8,0.6662]
[1641230296404,0.06311485,3753.2,3753.0,1.3324335]
[1641230296608,0.00170527,3753.1,3753.0,1.3324335]
[1641230296908,0.00170527,3753.1,3753.0,1.6324335]
[1641230297909,0.00170527,3753.1,3753.0,0.96622]
[1641230299157,0.00170527,3753.1,3753.0,0.66622]
[1641230299558,0.00170527,3753.1,3752.8,0.6662]
[1641230299559,0.38570527,3753.1,3752.8,0.6662]
[1641230299761,0.38570527,3753.1,3752.5,0.00363321]
[1641230299762,0.01242146,3752.9,3752.5,0.00363321]
[1641230299962,0.384,3752.8,3752.6,0.66648]
[1641230300161,2.34738733,3752.7,3752.6,0.66761685]
[1641230300362,2.73138733,3752.7,3752.6,0.66761685]
[1641230300562,0.384,3752.7,3752.6,0.66761685]
[1641230300764,7.2638242,3752.7,3752.6,0.66761685]
[1641230300962,4.99751926,3752.7,3752.6,0.66761685]
[1641230301266,6.3208198,3752.7,3752.6,0.66761685]
[1641230301862,6.26282616,3752.6,3752.5,0.00363321]
[1641230302118,6.26282616,3752.6,3751.8,1.33312]
[1641230302119,0.66665,3752.4,3751.8,1.33312]
[1641230302324,0.66665,3752.4,3750.3,3.1572]
[1641230302325,8.4172482,3752.2,3751.5,0.66666]
[1641230302518,4.3,3752.1,3751.5,0.66666]
[1641230302718,0.384,3752.0,3751.5,0.66666]
[1641230302918,0.384,3752.0,3751.6,0.00568423]
[1641230303121,2.50676041,3751.9,3751.6,0.00568423]
[1641230303324,0.384,3751.8,3751.6,0.00568423]
[1641230303522,1.25424009,3751.1,3750.9,0.0096632]
[1641230303726,1.25424009,3751.1,3750.9,1.3430032]
[1641230303727,2.25153306,3751.0,3750.9,1.3430032]
[1641230303926,2.6325006,3751.0,3750.9,1.3430032]
[1641230304123,2.6325006,3751.0,3750.9,0.0096632]
[1641230304324,32.55172781,3751.0,3750.9,0.0096632]
[1641230304524,33.21848781,3751.0,3750.8,0.01023162]
[1641230304826,32.29328775,3751.0,3750.8,0.01023162]
[1641230305024,2.18855516,3750.9,3750.8,0.01023162]
[1641230305224,2.57255516,3750.9,3750.8,1.34358162]
[1641230305625,0.384,3750.9,3750.8,1.34358162]
[1641230305854,3.80350018,3750.9,3750.8,1.34358162]
[1641230307658,3.80350018,3750.9,3750.8,1.44894062]
[1641230308060,3.80350018,3750.9,3750.8,1.4536256]
[1641230309262,6.02260171,3750.9,3750.8,1.4536256]
[1641230309615,7.27260171,3750.9,3750.8,1.4536256]
[1641230309815,8.27260171,3750.9,3750.8,0.1202756]
[1641230310618,5.05350018,3750.9,3750.8,0.1202756]
[1641230311723,2.95730054,3750.9,3750.8,0.1202756]
[1641230314164,2.83951722,3750.9,3750.8,0.1202756]
[1641230314568,1.58951722,3750.9,3750.8,0.1202756]
[1641230314770,3.43967301,3751.4,3750.8,0.1202756]
[1641230314771,2.77299301,3751.4,3750.9,4.2]
[1641230314970,2.77299301,3751.4,3750.8,0.1202756]
[1641230315170,2.70987544,3751.4,3751.1,0.66638]
[1641230315371,2.24137257,3751.6,3751.4,1.39014697]